[Event "Polish University-ch Open 2024"]
[Site "Lublin"]
[Date "2024.02.24"]
[Round "8.1"]
[White "Janik, Igor"]
[Black "Kosakowski, Jakub"]
[Result "0-1"]
[ECO "A04"]
[WhiteElo "2499"]
[BlackElo "2482"]
[Annotator "RC"]
[PlyCount "170"]
[EventDate "2024.02.22"]
[EventType "swiss"]
[EventCountry "POL"]
[SourceTitle "playchess.com"]
[Source "ChessBase"]
[SourceQuality "1"]
[TimeControl "600+3"]

1. e4 {[%emt 0:00:01]} c5 {[%emt 0:00:17]} 2. Nf3 {[%emt 0:00:04]} e6 {[%emt 0:00:17]} 3. g3 {[%emt 0:00:05]} Nc6 {[%emt 0:00:11]} 4. Bg2 {[%emt 0:00:01]} g6 {[%emt 0:00:07]} 5. O-O {[%emt 0:00:06]} Bg7 {[%emt 0:00:04]} 6. c3 {[%emt 0:00:02]} e5 {[%emt 0:00:08]} 7. Na3 {[%emt 0:00:17]} Nge7 {[%emt 0:00:05]} 8. d3 {[%emt 0:00:59]} O-O {[%emt 0:00:07]} 9. Nc4 {[%emt 0:00:01]} b5 {[%emt 0:00:28]} 10. Ne3 {[%emt 0:00:26]} d6 {[%emt 0:00:12]} 11. a4 {[%emt 0:00:04]} b4 {[%emt 0:00:08]} 12. Nd2 {[%emt 0:00:07]} Be6 {[%emt 0:00:21]} 13. Nd5 {[%emt 0:00:18]} Rb8 {[%emt 0:00:37]} 14. Nc4 {[%emt 0:00:08]} bxc3 {[%emt 0:00:51]} 15. bxc3 {[%emt 0:00:01]} Bxd5 {[%emt 0:00:12]} 16. exd5 {[%emt 0:00:03]} Na5 {[%emt 0:00:01]} 17. Na3 {[%emt 0:01:24]} Qd7 {[%emt 0:00:59]} 18. Qc2 {[%emt 0:00:48]} a6 {[%emt 0:00:48]} 19. Bg5 {[%emt 0:00:44]} h6 {[%emt 0:00:20]} 20. Bd2 {[%emt 0:00:31]} Nb3 {[%emt 0:01:21]} 21. Ra2 {[%emt 0:00:07]} Nxd2 {[%emt 0:00:14]} 22. Qxd2 {[%emt 0:00:02]} Rb3 {[%emt 0:00:02]} 23. Nc4 {[%emt 0:01:40]} Rfb8 {[%emt 0:00:59]} 24. Rc1 {[%emt 0:00:09]} Qc7 {[%emt 0:00:18]} 25. a5 {[%emt 0:00:34]} Kh7 {[%emt 0:00:08]} 26. Bf3 {[%emt 0:00:21]} h5 {[%emt 0:00:12]} 27. Qc2 {[%emt 0:00:26]} e4 {[%emt 0:00:14]} 28. Bxe4 {[%emt 0:00:01]} Rxc3 {[%emt 0:00:08]} 29. Qd1 {[%emt 0:00:02]} Rxc1 {[%emt 0:00:12]} 30. Qxc1 {[%emt 0:00:01]} Bh6 {[%emt 0:00:39]} 31. Qd1 {[%emt 0:00:29]} h4 {[%emt 0:00:43]} 32. gxh4 {[%emt 0:00:51]} Qd7 {[%emt 0:00:11]} 33. Qf3 {[%emt 0:00:17]} f5 {[%emt 0:00:02]} 34. Qh3 {[%emt 0:00:00]} Qc7 {[%emt 0:00:04]} 35. Bf3 {[%emt 0:00:02]} Rf8 {[%emt 0:00:03]} 36. Re2 {[%emt 0:00:05]} Ng8 {[%emt 0:00:03]} 37. Re6 {[%emt 0:00:06]} Bf4 {[%emt 0:00:01]} 38. Qf1 {[%emt 0:00:17]} Nf6 {[%emt 0:00:01]} 39. Qe2 {[%emt 0:00:00]} Rf7 {[%emt 0:00:07]} 40. Bg2 {[%emt 0:00:05]} Ng4 {[%emt 0:00:01]} 41. h3 {[%emt 0:00:05]} Nf6 {[%emt 0:00:03]} 42. Bf3 {[%emt 0:00:04]} Kg7 {[%emt 0:00:02]} 43. Kg2 {[%emt 0:00:02]} Qd8 {[%emt 0:00:02]} 44. Qb2 {[%emt 0:00:01]} Qh8 {[%emt 0:00:07]} 45. h5 {[%emt 0:00:03]} gxh5 {[%emt 0:00:02]} 46. Nxd6 {[%emt 0:00:09]} Bxd6 {[%emt 0:00:02]} 47. Rxd6 {[%emt 0:00:01]} Qh6 {[%emt 0:00:01]} 48. Re6 {[%emt 0:00:03]} Qg5+ {[%emt 0:00:02]} 49. Kf1 {[%emt 0:00:01]} Qf4 {[%emt 0:00:02]} 50. Bg2 {[%emt 0:00:06]} Qa4 {[%emt 0:00:07]} 51. Kg1 {[%emt 0:00:06]} Qxa5 {[%emt 0:00:02]} 52. Qe5 {[%emt 0:00:05]} Qd2 {[%emt 0:00:05]} 53. Qg3+ {[%emt 0:00:06]} Kf8 {[%emt 0:00:01]} 54. Qd6+ {[%emt 0:00:02]} Kg7 {[%emt 0:00:01]} 55. Qg3+ {[%emt 0:00:00]} Kf8 {[%emt 0:00:00]} 56. d6 {[%emt 0:00:01]} f4 {[%emt 0:00:09]} 57. Qg5 {[%emt 0:00:04]} Qc3 {[%emt 0:00:05]} 58. Qh6+ {[%emt 0:00:05]} Kg8 {[%emt 0:00:01]} 59. Qg5+ {[%emt 0:00:03]} Kh7 {[%emt 0:00:03]} 60. Re7 {[%emt 0:00:05]} Rxe7 {[%emt 0:00:01]} 61. dxe7 {[%emt 0:00:01]} Qe1+ {[%emt 0:00:01]} 62. Kh2 Qxe7 63. Be4+ {[%emt 0:00:08]} Kh8 {[%emt 0:00:02]} 64. Kh1 {[%emt 0:00:04]} a5 {[%emt 0:00:08]} 65. Qh6+ {[%emt 0:00:02]} Kg8 {[%emt 0:00:01]} 66. Qg5+ {[%emt 0:00:01]} Kf8 {[%emt 0:00:01]} 67. Qxf4 {[%emt 0:00:01]} a4 {[%emt 0:00:06]} 68. Qb8+ {[%emt 0:00:03]} Kg7 {[%emt 0:00:01]} 69. Qg3+ {[%emt 0:00:01]} Kf8 {[%emt 0:00:05]} 70. Qb8+ {[%emt 0:00:02]} Kf7 {[%emt 0:00:04]} 71. Qa8 {[%emt 0:00:07]} Qd7 {[%emt 0:00:02]} 72. Kg2 {[%emt 0:00:06]} Nxe4 {[%emt 0:00:08]} 73. dxe4 {[%emt 0:00:02]} c4 {[%emt 0:00:01]} 74. Qa5 {[%emt 0:00:01]} Qc6 {[%emt 0:00:05]} 75. Qf5+ {[%emt 0:00:04]} Ke7 {[%emt 0:00:01]} 76. Qe5+ {[%emt 0:00:06]} Kd7 {[%emt 0:00:01]} 77. Qf5+ {[%emt 0:00:02]} Kc7 {[%emt 0:00:00]} 78. Qe5+ {[%emt 0:00:01]} Kb7 {[%emt 0:00:01]} 79. Qe7+ {[%emt 0:00:02]} Ka6 {[%emt 0:00:00]} 80. Kf3 {[%emt 0:00:07]} c3 {[%emt 0:00:01]} 81. Qa3 {[%emt 0:00:08]} c2 {[%emt 0:00:07]} 82. Qc1 {[%emt 0:00:00]} Qc3+ {[%emt 0:00:01]} 83. Ke2 {[%emt 0:00:00]} a3 {[%emt 0:00:01]} 84. Qh6+ {[%emt 0:00:00]} Kb5 {[%emt 0:00:05]} 85. Qg5+ {[%emt 0:00:02]} Ka4 {[%emt 0:00:03]} 0-1

[Event "Polish University-ch Open 2024"]
[Site "Lublin"]
[Date "2024.02.24"]
[Round "8.2"]
[White "Baum, Jonasz"]
[Black "Szpar, Milosz"]
[Result "0-1"]
[ECO "B22"]
[WhiteElo "2400"]
[BlackElo "2495"]
[Annotator "TA"]
[PlyCount "82"]
[EventDate "2024.02.22"]
[EventType "swiss"]
[EventCountry "POL"]
[SourceTitle "playchess.com"]
[Source "ChessBase"]
[SourceQuality "1"]
[TimeControl "600+3"]

{[%evp 10,82,32,20,36,-37,18,17,15,15,8,0,0,-2,10,0,0,0,0,-29,-21,-47,-37,-44,-45,-59,-43,-54,-70,-50,-41,-52,-50,-53,-57,-177,-176,-175,-114,-177,-149,-403,-204,-549,-546,-544,-546,-524,-553,-905,-811,-1245,-427,-712,-430,-721,-710,-770,-735,-742,-768,-1717,-1618,-3235,-2836,-29993,-29991,-29991,-29992,-29992,-29993,-29994,-29994,-29994,-29995]} 1. e4 {[%emt 0:00:01]} e6 {[%emt 0:00:08]} 2. d4 {[%emt 0:00:06]} d5 {[%emt 0:00:02]} 3. exd5 {[%emt 0:00:16]} exd5 {[%emt 0:00:03]} 4. Nf3 {[%emt 0:00:01]} Nf6 {[%emt 0:00:08]} 5. Bd3 {[%emt 0:00:01]} c5 {[%emt 0:00:03]} 6. c3 {[%emt 0:00:02]} Nc6 {[%emt 0:00:16]} 7. Qe2+ {[%emt 0:02:02]} (7. O-O $14) 7... Qe7 {[%emt 0:01:23]} (7... Be7 $15) 8. Be3 $11 {[%emt 0:02:12]} c4 {[%emt 0:00:17] The position is equal.} 9. Bc2 {[%emt 0:00:01]} g6 {[%emt 0:00:24]} 10. Nbd2 {[%emt 0:00:38]} Bg7 {[%emt 0:00:03]} 11. h3 {[%emt 0:01:30]} O-O {[%emt 0:00:12]} 12. O-O {[%emt 0:00:23]} b5 {[%emt 0:00:42]} 13. Rfe1 {[%emt 0:00:26][%cal Of3e5]} Re8 {[%emt 0:00:15]} 14. Qf1 {[%emt 0:00:05]} Qc7 {[%emt 0:00:53]} 15. g3 {[%emt 0:00:23]} Be6 {[%emt 0:00:08]} 16. Bf4 {[%emt 0:00:06]} Qd7 {[%emt 0:00:06]} 17. g4 {[%emt 0:01:14]} h5 {[%emt 0:00:06]} 18. Ne5 {[%emt 0:00:23]} Nxe5 {[%emt 0:00:02]} 19. dxe5 {[%emt 0:00:01]} Nh7 {[%emt 0:00:02]} 20. f3 {[%emt 0:00:44]} hxg4 {[%emt 0:00:03]} 21. hxg4 {[%emt 0:00:03]} d4 {[%emt 0:00:16] aiming for ...d3.} 22. Ne4 {[%emt 0:00:01]} (22. Be4 $1 $15) 22... d3 $19 {[%emt 0:00:02]} 23. Bd1 {[%emt 0:00:01]} Bd5 {[%emt 0:00:09][%cal Of7f5]} 24. Nd6 {[%emt 0:00:11]} (24. Qf2 $17) 24... Re6 {[%emt 0:00:33] [#] Threatens to win with ...Qe7.} 25. a4 $2 {[%emt 0:00:01][%mdl 8192] Now White is beyond hope.} (25. Qf2 $17) 25... f6 {[%emt 0:00:01]} (25... Qe7 $142 {[%cal Rg7e5]} 26. Bd2 Bxe5 (26... Rxe5 $2 27. Nxb5 Ng5 28. b3 $19)) 26. Nxb5 $2 {[%emt 0:00:14]} (26. Ne4 {was the crucial defense.} Bxe4 (26... fxe5 27. Nc5 $17) 27. Rxe4 fxe5 28. Bd2) 26... fxe5 {[%emt 0:00:01]} 27. Be3 {[%emt 0:00:10]} a6 {[%emt 0:00:01]} 28. Na3 {[%emt 0:00:02]} Rf8 {[%emt 0:00:07]} 29. b3 {[%emt 0:00:05]} cxb3 {[%emt 0:00:17]} 30. Qxd3 {[%emt 0:00:01]} Qb7 {[%emt 0:00:01]} (30... e4 $142 31. Qxd5 Qxd5) 31. Bc5 {[%emt 0:00:07]} (31. c4 $142 b2 (31... Bxf3 $2 32. c5 $19) 32. Rb1 Bxf3 33. g5) 31... Rc8 {[%emt 0:00:37]} 32. Bb4 {[%emt 0:00:02] [#]} (32. c4 $142 Rxc5 33. cxd5) 32... a5 $1 {[%emt 0:00:12][%mdl 512]} 33. Bxa5 {[%emt 0:00:05]} (33. Qb5 Qxb5) 33... Qa7+ {[%emt 0:00:01]} 34. Kg2 {[%emt 0:00:03]} Qxa5 {[%emt 0:00:01]} 35. c4 {[%emt 0:00:03]} Qxe1 {[%emt 0:02:56]} 36. cxd5 {[%emt 0:00:00]} e4 {[%emt 0:00:05]} 37. Qxb3 {[%emt 0:00:06]} exf3+ {[%emt 0:00:11] Black mates.} 38. Bxf3 {[%emt 0:00:01]} Re2+ {[%emt 0:00:00]} 39. Bxe2 {[%emt 0:00:05]} Qxe2+ {[%emt 0:00:01]} 40. Kh3 {[%emt 0:00:03]} Rc3+ {[%emt 0:00:07]} 41. Qxc3 {[%emt 0:00:02]} Bxc3 {[%emt 0:00:01] Weighted Error Value: White=1.40/Black=0.38.  Loses game:     	White=1     	---        Mistake:       	White=5     	Black=2      Inaccurate:     	White=4     	---        OK:         	White=9     	Black=13     Best:        	---       	Black=2} 0-1

[Event "Polish University-ch Open 2024"]
[Site "Lublin"]
[Date "2024.02.24"]
[Round "8.3"]
[White "Chylewski, Patryk"]
[Black "Mis, Mieszko"]
[Result "0-1"]
[ECO "D02"]
[WhiteElo "2285"]
[BlackElo "2325"]
[Annotator "TA"]
[PlyCount "71"]
[EventDate "2024.02.22"]
[EventType "swiss"]
[EventCountry "POL"]
[SourceTitle "playchess.com"]
[Source "ChessBase"]
[SourceQuality "1"]
[TimeControl "600+3"]

{[%evp 21,71,0,38,0,0,-22,-7,-14,-16,-14,0,-21,28,-14,-11,-5,-7,-16,12,-422,-432,-449,-385,-324,-329,-755,-735,-710,403,417,1345,758,691,398,394,390,751,109,118,105,95,0,112,102,104,-29993,-29994,-29996,0,-113,1103,256]} 1. d4 {[%emt 0:10:06]} Nf6 {[%emt 0:00:03]} 2. c4 {[%emt 0:00:00]} e6 {[%emt 0:00:04]} 3. Nf3 {[%emt 0:00:00]} b6 {[%emt 0:00:05]} 4. g3 {[%emt 0:00:00]} Bb7 {[%emt 0:00:14]} 5. Bg2 {[%emt 0:00:00]} Bb4+ {[%emt 0:00:01]} 6. Nbd2 {[%emt 0:00:00]} c5 {[%emt 0:00:14]} 7. dxc5 {[%emt 0:00:00]} Bxc5 {[%emt 0:00:12]} 8. O-O {[%emt 0:00:00]} O-O {[%emt 0:00:04]} 9. b3 {[%emt 0:00:00]} d5 {[%emt 0:00:22]} 10. cxd5 {[%emt 0:00:00]} Nxd5 {[%emt 0:00:09]} 11. Bb2 {[%emt 0:00:00]} Nc6 {[%emt 0:00:16]} 12. Rc1 {[%emt 0:00:00]} Qe7 {[%emt 0:00:07]} 13. Nc4 {[%emt 0:00:00]} Rfd8 {[%emt 0:00:17][%cal Od5e3] With the idea ...Ne3!} 14. Qc2 {[%emt 0:00:00] The position is equal.} Rac8 {[%emt 0:00:15]} 15. Qb1 {[%emt 0:00:00]} Nf6 {[%emt 0:00:28][%cal Bd5f6,Bf6e4,Be4g5,Bg5h3][%mdl 32]} 16. e3 {[%emt 0:00:00]} Nb4 {[%emt 0:00:14]} (16... b5 {was preferrable.} 17. Nce5 Nxe5 18. Bxe5 h6) 17. Nfe5 {[%emt 0:00:00]} (17. Rfd1 $5) 17... Bxg2 {[%emt 0:00:09]} 18. Kxg2 {[%emt 0:00:00]} Qb7+ {[%emt 0:00:01]} 19. Kg1 {[%emt 0:00:00]} b5 {[%emt 0:00:50]} 20. Na3 {[%emt 0:00:00][%mdl 8192]} (20. Na5 $11 Qa8 21. a3) 20... Ne4 $19 {[%emt 0:00:23] aiming for ...Nd2.} 21. Rfd1 {[%emt 0:00:32]} Ng5 {[%emt 0:00:31] ...Nh3+ is the strong threat.} 22. Rxd8+ {[%emt 0:00:17]} Rxd8 {[%emt 0:00:01]} 23. Rxc5 $2 {[%emt 0:00:06]} (23. h4 Nh3+ 24. Kh2 Nxf2 25. Rxc5) 23... Nh3+ {[%emt 0:00:30]} 24. Kf1 {[%emt 0:00:01]} Rd2 $4 {[%emt 0:00:02][%mdl 8192]} (24... Qh1+ $19 {avoids the disaster.} 25. Ke2 Ng1+ (25... Qxh2 26. Ng4 $15) 26. Qxg1 Qxg1) 25. Qe4 $1 $18 {[%emt 0:00:10]} (25. Nxb5 $2 Qh1#) 25... Rxf2+ {[%emt 0:01:47]} (25... Qxe4 26. Rc8+) (25... Nc2 $2 26. Nd3 $18 (26. Qxb7 $2 Rxf2#) (26. Rxc2 Rd5 $18) (26. Qxb7 $2 Rxf2#) (26. Rxc2 Rd1+ 27. Ke2 Rd5 $18)) (25... Nd5 $142) 26. Ke1 {[%emt 0:00:01]} Nd5 {[%emt 0:00:24]} 27. Nd3 {[%emt 0:00:02]} Rxh2 {[%emt 0:00:25] Threatens to win with ...Ng5.} 28. Rxb5 {[%emt 0:00:04]} Qc7 {[%emt 0:00:46]} (28... Qc8 29. Qe5 Rh1+ 30. Kd2 f6) 29. Qe5 $2 {[%emt 0:00:01]} (29. Be5 $18 {and the rest is easy.} Qc8 30. Rb8 Qxb8 31. Bxb8) 29... Rh1+ $16 {[%emt 0:00:04]} 30. Kd2 {[%emt 0:00:02][%csl Gb2][%cal Re5g7]} Rh2+ {[%emt 0:00:13]} 31. Ke1 {[%emt 0:00:06][%csl Gb2][%cal Re5g7]} Rh1+ {[%emt 0:01:01]} 32. Ke2 $1 {[%emt 0:00:01][%csl Gb2][%cal Re5g7]} Rh2+ {[%emt 0:00:05]} 33. Kf3 $2 {[%emt 0:00:07][%mdl 8192]} (33. Kd1 $16 Rh1+ 34. Ke2 Rh2+ 35. Kd1 Rh1+ 36. Ne1 Qxe5 37. Bxe5 Nxe3+ 38. Ke2) 33... Qxe5 {[%emt 0:00:15]} 34. Bxe5 {[%emt 0:00:02] [#]} h5 $2 {[%emt 0:00:02]} (34... Ng5+ $1 {mates} 35. Kg4 f5+ (35... Nxe3+ $2 36. Kxg5 f6+ 37. Bxf6 $18) 36. Kxg5 h6+ 37. Kg6 Ne7#) 35. g4 {[%emt 0:00:05] [#]} (35. Ke4 $11) 35... Rf2+ $2 {[%emt 0:00:06][%mdl 8192]} 36. Kg3 $2 {[%emt 0:00:02][%mdl 32768] Weighted Error Value: White=1.12/Black=0.50.  Loses game:     	White=2     	---        Missed win:     	White=1     	---        Mistake:       	White=2     	Black=2      Inaccurate:     	White=2     	Black=1      OK:         	White=1     	Black=3      Best:        	White=2     	Black=9      Strong:       	White=1     	---       . Sensor Board Error (Ke4/e5)?} (36. Nxf2 hxg4+ 37. Nxg4) 0-1

[Event "Polish University-ch Open 2024"]
[Site "Lublin"]
[Date "2024.02.24"]
[Round "8.4"]
[White "Kulesza, Andrzej"]
[Black "Suder, Jakub"]
[Result "0-1"]
[ECO "C06"]
[WhiteElo "2076"]
[BlackElo "2333"]
[Annotator "TA"]
[PlyCount "103"]
[EventDate "2024.02.22"]
[EventType "swiss"]
[EventCountry "POL"]
[SourceTitle "playchess.com"]
[Source "ChessBase"]
[SourceQuality "1"]
[TimeControl "600+3"]

{[%evp 21,103,37,66,31,21,0,7,0,29,0,19,36,39,28,18,0,0,0,51,46,47,47,61,57,68,48,60,54,47,54,47,36,47,40,45,43,60,45,43,49,56,-14,51,0,69,-14,-8,-14,25,19,29,0,47,47,40,37,58,0,29,22,82,73,83,89,98,107,170,0,30,0,338,343,579,555,576,558,620,584,696,708,769,769,1174,1066]} 1. e4 {[%emt 0:00:03]} e6 {[%emt 0:00:01]} 2. d4 {[%emt 0:00:03]} d5 {[%emt 0:00:01]} 3. Nd2 {[%emt 0:00:02]} Nf6 {[%emt 0:00:02]} 4. e5 {[%emt 0:00:01]} Nfd7 {[%emt 0:00:01]} 5. Bd3 {[%emt 0:00:02]} c5 {[%emt 0:00:02]} 6. c3 {[%emt 0:00:01]} Nc6 {[%emt 0:00:05]} 7. Ne2 {[%emt 0:00:03]} Be7 {[%emt 0:00:05]} 8. O-O {[%emt 0:00:15]} cxd4 {[%emt 0:00:44]} 9. cxd4 {[%emt 0:00:02]} f6 {[%emt 0:00:08]} 10. exf6 {[%emt 0:00:08]} Nxf6 {[%emt 0:00:01]} 11. Nf3 {[%emt 0:00:02]} O-O {[%emt 0:00:02]} 12. Bf4 {[%emt 0:00:19]} Nh5 {[%emt 0:00:16]} 13. Bg3 {[%emt 0:00:25]} Bd7 {[%emt 0:00:33]} 14. Rc1 {[%emt 0:00:12] The position is equal.} Kh8 {[%emt 0:00:14]} 15. Re1 {[%emt 0:00:55]} Nxg3 {[%emt 0:01:11]} 16. hxg3 {[%emt 0:00:03]} Bd6 {[%emt 0:00:04] Wards off Nf4} 17. Nc3 {[%emt 0:00:25][%cal Be2c3,Bc3a4,Ba4c5][%mdl 32]} Qf6 {[%emt 0:00:06]} 18. Bb1 {[%emt 0:00:15]} Qh6 {[%emt 0:00:23]} 19. Na4 {[%emt 0:01:35]} Rae8 {[%emt 0:00:18]} (19... Be8 $11) 20. Nc5 $14 {[%emt 0:00:06]} Bc8 {[%emt 0:00:08]} 21. Nd3 {[%emt 0:00:19] Dodges e5} Re7 {[%emt 0:01:17]} 22. Nde5 {[%emt 0:00:18]} Bd7 {[%emt 0:00:32]} 23. Nxc6 {[%emt 0:01:20]} Bxc6 {[%emt 0:00:15]} 24. Ne5 {[%emt 0:00:07]} Be8 {[%emt 0:01:43]} 25. Rc8 {[%emt 0:01:08]} Rc7 {[%emt 0:01:11]} 26. Rxc7 {[%emt 0:00:29]} Bxc7 {[%emt 0:00:01]} 27. Bd3 {[%emt 0:00:02]} Qf6 {[%emt 0:00:27]} 28. Qd2 {[%emt 0:01:18]} Bd6 {[%emt 0:00:26]} 29. a3 {[%emt 0:00:12]} a6 {[%emt 0:00:22]} 30. Re3 {[%emt 0:00:25]} Qh6 {[%emt 0:00:12]} 31. Re2 {[%emt 0:00:03]} (31. Qc2 $14) 31... Qf6 {[%emt 0:00:12]} ({Black should try} 31... Qxd2 $11 32. Rxd2 Bc7) 32. Re3 {[%emt 0:00:02]} Qh6 {[%emt 0:00:00]} 33. Re2 {[%emt 0:00:00]} ({White should play} 33. Qc2 $14) 33... Qxd2 $11 {[%emt 0:00:09]} 34. Rxd2 {[%emt 0:00:01]} Bxe5 {[%emt 0:00:03]} 35. dxe5 {[%emt 0:00:02][%mdl 4096] Endgame. KRB-KRB} Ba4 {[%emt 0:00:05]} 36. f4 {[%emt 0:00:07]} g6 {[%emt 0:00:07]} (36... Kg8 $11 {is superior.}) 37. Kf2 $14 {[%emt 0:00:08]} Rc8 {[%emt 0:00:04]} 38. Ke3 {[%emt 0:00:00]} Kg7 {[%emt 0:00:01]} 39. Kd4 {[%emt 0:00:02]} ({Better is} 39. g4 $14) 39... Rc1 {[%emt 0:00:04]} 40. g4 {[%emt 0:00:15][%cal Ob2b3]} h6 {[%emt 0:00:12]} (40... Bd1 $11) 41. f5 $16 {[%emt 0:00:04]} gxf5 {[%emt 0:00:02]} 42. gxf5 {[%emt 0:00:01]} exf5 {[%emt 0:00:03]} 43. Bxf5 {[%emt 0:00:02]} (43. Kxd5 Rc8 $11) 43... Bb3 {[%emt 0:00:09]} (43... Bc6 $16) 44. Be6 $2 {[%emt 0:00:07] [#]} (44. Rd3 $18 Ba4 45. Rg3+ (45. Kxd5 Kf7 $16) 45... Kf7 46. Rg6 (46. Kxd5 Rd1+ 47. Rd3 Rc1 $16)) 44... Rc7 {[%emt 0:00:04]} 45. Rd3 {[%emt 0:00:04]} (45. Bxd5 $2 {too greedy.} Bxd5 46. g3 (46. Kxd5 $2 Rd7+ 47. Ke4 Rxd2 $19) 46... Bc6 $19) 45... Bc4 {[%emt 0:00:01][%mdl 8192]} (45... Rc4+ $11 {and Black stays safe.} 46. Ke3 Re4+ 47. Kd2 Rxe5) 46. Rg3+ $18 {[%emt 0:00:01]} Kh8 $2 {[%emt 0:00:04]} (46... Kf8 47. b3 (47. Bxd5 Bxd5 48. Kxd5 Ke8 $18) 47... Bb5 48. Bxd5 (48. Kxd5 Rc1 $18) 48... Bd7) 47. Bxd5 {[%emt 0:00:04] White is clearly winning.} Bb5 {[%emt 0:00:04]} 48. e6 {[%emt 0:00:02]} Rc1 {[%emt 0:00:03]} 49. Re3 {[%emt 0:00:02]} Kg7 {[%emt 0:00:02]} 50. Ke5 {[%emt 0:00:02]} Rd1 {[%emt 0:00:05]} 51. Bxb7 {[%emt 0:00:02]} a5 {[%emt 0:00:01]} 52. Bd5 {[%emt 0:00:03][%mdl 32768] Weighted Error Value: White=0.22 (precise) /Black=0.35.  Loses game:     	---       	Black=1      Missed win:     	White=1     	---        Mistake:       	White=3     	Black=6      Inaccurate:     	White=3     	Black=4      OK:         	White=12    	Black=12     Best:        	White=3     	Black=1     . Loss on time!?} 0-1

[Event "Polish University-ch Open 2024"]
[Site "Lublin"]
[Date "2024.02.24"]
[Round "8.5"]
[White "Psyk, Radoslaw"]
[Black "Golenia, Jan"]
[Result "1-0"]
[ECO "C45"]
[WhiteElo "2461"]
[BlackElo "2221"]
[Annotator "RC"]
[PlyCount "147"]
[EventDate "2024.02.22"]
[EventType "swiss"]
[EventCountry "POL"]
[SourceTitle "playchess.com"]
[Source "ChessBase"]
[SourceQuality "1"]
[TimeControl "600+3"]

1. e4 {[%emt 0:10:06]} e5 {[%emt 0:00:01]} 2. Nf3 {[%emt 0:00:00]} Nc6 {[%emt 0:00:02]} 3. d4 {[%emt 0:00:00]} exd4 {[%emt 0:00:08]} 4. Nxd4 {[%emt 0:00:00]} Nf6 {[%emt 0:00:47]} 5. Nxc6 {[%emt 0:00:00]} bxc6 {[%emt 0:00:01]} 6. e5 {[%emt 0:00:00]} Nd5 {[%emt 0:00:01]} 7. c4 {[%emt 0:00:00]} Nb6 {[%emt 0:00:02]} 8. Be2 {[%emt 0:00:00]} Bc5 {[%emt 0:01:15]} 9. O-O {[%emt 0:00:00]} Qh4 {[%emt 0:00:41]} 10. Nd2 {[%emt 0:00:00]} d6 {[%emt 0:00:56]} 11. Nb3 {[%emt 0:00:00]} Be6 {[%emt 0:01:28]} 12. Nxc5 {[%emt 0:00:00]} dxc5 {[%emt 0:00:01]} 13. b3 {[%emt 0:00:00]} Rd8 {[%emt 0:02:29]} 14. Qc2 {[%emt 0:00:00]} Qd4 {[%emt 0:00:01]} 15. Bg5 {[%emt 0:00:00]} Rd7 {[%emt 0:00:09]} 16. Bf3 {[%emt 0:00:00]} Qxe5 {[%emt 0:00:03]} 17. Bh4 {[%emt 0:00:00]} O-O {[%emt 0:00:28]} 18. Rfe1 {[%emt 0:00:00]} Qd4 {[%emt 0:00:51]} 19. Bg5 {[%emt 0:00:00]} Qd3 {[%emt 0:00:08]} 20. Qb2 {[%emt 0:00:00]} Qf5 {[%emt 0:00:17]} 21. Re5 {[%emt 0:00:00]} Qd3 {[%emt 0:00:19]} 22. Ree1 {[%emt 0:00:00]} Qf5 {[%emt 0:00:02]} 23. Re5 {[%emt 0:00:06]} Qd3 {[%emt 0:00:01]} 24. Rae1 {[%emt 0:00:16]} Bxc4 {[%emt 0:00:44]} 25. Bxc6 {[%emt 0:00:23]} Rd6 {[%emt 0:00:07]} 26. Be4 {[%emt 0:00:04]} Qd4 {[%emt 0:00:00]} 27. Qxd4 {[%emt 0:00:05]} cxd4 {[%emt 0:00:02]} 28. bxc4 {[%emt 0:00:03]} f6 {[%emt 0:00:00]} 29. Rb5 {[%emt 0:00:19]} a6 {[%emt 0:00:07]} 30. Rbb1 {[%emt 0:00:02]} fxg5 {[%emt 0:00:13]} 31. c5 {[%emt 0:00:01]} Rdf6 {[%emt 0:00:03]} 32. cxb6 {[%emt 0:00:02]} cxb6 {[%emt 0:00:00]} 33. f3 {[%emt 0:00:07]} Rd8 {[%emt 0:00:02]} 34. Red1 {[%emt 0:00:02]} Rfd6 {[%emt 0:00:01]} 35. Bd3 {[%emt 0:00:04]} b5 {[%emt 0:00:01]} 36. Rbc1 {[%emt 0:00:02]} R8d7 {[%emt 0:00:08]} 37. Re1 {[%emt 0:00:05]} g6 {[%emt 0:00:03]} 38. Kf2 {[%emt 0:00:02]} Kf7 {[%emt 0:00:15]} 39. Rc5 {[%emt 0:00:02]} h6 {[%emt 0:00:00]} 40. Rc8 {[%emt 0:00:03]} Rd8 {[%emt 0:00:00]} 41. Rc7+ {[%emt 0:00:02]} R8d7 {[%emt 0:00:00]} 42. Rc8 {[%emt 0:00:02]} Rd8 {[%emt 0:00:00]} 43. Rc5 {[%emt 0:00:01]} Rd5 {[%emt 0:00:00]} 44. Rc2 {[%emt 0:00:08]} R8d7 {[%emt 0:00:00]} 45. Rec1 {[%emt 0:00:02]} R5d6 {[%emt 0:00:02]} 46. Rc8 {[%emt 0:00:02]} Rd8 {[%emt 0:00:05]} 47. Rxd8 {[%emt 0:00:01]} Rxd8 {[%emt 0:00:01]} 48. Rc6 {[%emt 0:00:01]} a5 {[%emt 0:00:13]} 49. Bxb5 {[%emt 0:00:03]} d3 {[%emt 0:00:02]} 50. Ke1 {[%emt 0:00:03]} Re8+ {[%emt 0:00:01]} 51. Kd2 {[%emt 0:00:07]} Re2+ {[%emt 0:00:02]} 52. Kxd3 {[%emt 0:00:01]} Rxg2 {[%emt 0:00:01]} 53. Rc2 {[%emt 0:00:04]} Rg1 {[%emt 0:00:05]} 54. Ke3 {[%emt 0:00:03]} Kf6 {[%emt 0:00:03]} 55. Rc6+ {[%emt 0:00:02]} Ke5 {[%emt 0:00:03]} 56. Rxg6 {[%emt 0:00:06]} Rg2 {[%emt 0:00:01]} 57. Rxh6 {[%emt 0:00:03]} Rxa2 {[%emt 0:00:01]} 58. Bd3 {[%emt 0:00:03]} a4 {[%emt 0:00:03]} 59. h3 {[%emt 0:00:03]} a3 {[%emt 0:00:02]} 60. Rg6 {[%emt 0:00:05]} Rg2 {[%emt 0:00:04]} 61. Ra6 {[%emt 0:00:01]} a2 {[%emt 0:00:07]} 62. Bc4 {[%emt 0:00:02]} Rg3 {[%emt 0:00:11]} 63. Rxa2 {[%emt 0:00:02]} Rxh3 {[%emt 0:00:01]} 64. Ra5+ {[%emt 0:00:04]} Kf6 {[%emt 0:00:01]} 65. Ra6+ {[%emt 0:00:00]} Ke5 {[%emt 0:00:07]} 66. Rg6 {[%emt 0:00:06]} Rh5 {[%emt 0:00:02]} 67. Rg8 {[%emt 0:00:02]} Kf6 {[%emt 0:00:01]} 68. Be2 {[%emt 0:00:03]} Rh7 {[%emt 0:00:02]} 69. Rf8+ {[%emt 0:00:02]} Kg7 {[%emt 0:00:03]} 70. Rf5 {[%emt 0:00:02]} Kg6 {[%emt 0:00:02]} 71. Bd3 {[%emt 0:00:01]} Rf7 {[%emt 0:00:08]} 72. Rxf7+ {[%emt 0:00:04]} Kxf7 {[%emt 0:00:08]} 73. Bf5 Kf6 {[%emt 0:00:00]} 74. Ke4 {[%emt 0:00:05]} 1-0